bitfinex/quotes_BTCUSD_20250607
["timestamp","ask_amount","ask_price","bid_price","bid_amount"]
[1749331533231,0.15461085,105940.0,105930.0,0.59892343]
[1749331534936,0.15461088,105940.0,105930.0,0.59892343]
[1749331536464,0.13690474,105940.0,105930.0,0.59892343]
[1749331536820,0.15461016,105940.0,105930.0,0.59892343]
[1749331537683,0.14517129,105940.0,105930.0,0.59892343]
[1749331537903,0.12746589,105940.0,105930.0,0.59892343]
[1749331538116,0.14517129,105940.0,105930.0,0.59892343]
[1749331538260,0.14517128,105940.0,105930.0,0.59892343]
[1749331538670,0.15461013,105940.0,105930.0,0.59892343]
[1749331540693,0.14517128,105940.0,105930.0,0.59892343]
[1749331541573,0.14517034,105940.0,105930.0,0.59892343]
[1749331541777,0.15460919,105940.0,105930.0,0.59892343]
[1749331542615,0.15460921,105940.0,105930.0,0.59892343]
[1749331543046,0.13690474,105940.0,105930.0,0.59892343]
[1749331543256,0.15460921,105940.0,105930.0,0.59892343]
[1749331544345,0.15460917,105940.0,105930.0,0.59892343]
[1749331544549,0.15460897,105940.0,105930.0,0.59892343]
[1749331547141,0.15460881,105940.0,105930.0,0.59892343]
[1749331548637,0.15460871,105940.0,105930.0,0.59892343]
[1749331549484,0.13690474,105940.0,105930.0,0.59892343]
[1749331549693,0.15460894,105940.0,105930.0,0.59892343]
[1749331550123,0.15460893,105940.0,105930.0,0.59892343]
[1749331550332,0.15460887,105940.0,105930.0,0.59892343]
[1749331551191,0.01965694,105940.0,105930.0,1.20005789]
[1749331551409,0.02909494,105940.0,105930.0,1.21645789]
[1749331551649,0.01139131,105940.0,105930.0,1.21645789]
[1749331552091,0.02909494,105940.0,105930.0,1.20005789]
[1749331552315,0.01965644,105940.0,105930.0,1.20005789]
[1749331552534,0.01965644,105940.0,105930.0,1.23285789]
[1749331552761,0.02909494,105940.0,105930.0,1.23285789]
[1749331552995,0.01965644,105940.0,105930.0,1.21645789]
[1749331553280,0.01965686,105940.0,105930.0,1.21645789]
[1749331553489,0.0196526,105940.0,105930.0,1.20005789]
[1749331553629,0.00195281,105940.0,105930.0,1.20005789]
[1749331553837,0.0196525,105940.0,105930.0,1.20005789]
[1749331554471,0.0196525,105940.0,105930.0,0.59892343]
[1749331554672,0.00195281,105940.0,105930.0,0.61522343]
[1749331555022,0.01965251,105940.0,105930.0,0.61522343]
[1749331555561,0.0196513,105940.0,105930.0,0.61522343]
[1749331555987,0.0196513,105940.0,105930.0,0.59892343]
[1749331556370,0.01965118,105940.0,105930.0,0.59892343]
[1749331556604,0.01965116,105940.0,105930.0,0.59892343]
[1749331556811,0.00195281,105940.0,105930.0,0.59892343]
[1749331557120,0.01965105,105940.0,105930.0,0.59892343]
[1749331557932,0.03852832,105940.0,105930.0,0.59892343]
[1749331558287,0.03852727,105940.0,105930.0,0.59892343]
[1749331558711,0.03852728,105940.0,105930.0,0.59892343]
[1749331559967,0.02083008,105940.0,105930.0,0.59892343]
[1749331560104,0.03852729,105940.0,105930.0,0.59892343]
[1749331560300,0.0385273,105940.0,105930.0,0.59892343]
[1749331560721,0.03852729,105940.0,105930.0,0.59892343]
[1749331561940,0.0479662,105940.0,105930.0,0.59892343]
[1749331565523,0.04796669,105940.0,105930.0,1.20005789]
[1749331565733,0.03026893,105940.0,105930.0,1.20005789]
[1749331566154,0.04796669,105940.0,105930.0,1.20005789]
[1749331567546,0.04796702,105940.0,105930.0,1.20005789]
[1749331567882,0.04796701,105940.0,105930.0,1.20005789]
[1749331568263,0.04796719,105940.0,105930.0,1.20005789]
[1749331568491,0.04796741,105940.0,105930.0,1.20005789]
[1749331569227,0.03026893,105940.0,105930.0,1.20005789]
[1749331569416,0.04796742,105940.0,105930.0,1.20005789]
[1749331569566,0.03026893,105940.0,105930.0,1.20005789]
[1749331569975,0.0479674,105940.0,105930.0,1.20005789]
[1749331570181,0.04796749,105940.0,105930.0,1.20005789]
[1749331571003,0.03026902,105940.0,105930.0,1.20005789]
[1749331571209,0.0479681,105940.0,105930.0,1.20005789]
[1749331572614,0.0479683,105940.0,105930.0,1.20005789]
[1749331572951,0.03852936,105940.0,105930.0,1.20005789]
[1749331573153,0.0479683,105940.0,105930.0,1.20005789]
[1749331574455,0.04796852,105940.0,105930.0,1.20005789]
[1749331574676,0.03026902,105940.0,105930.0,1.20005789]
[1749331574887,0.0479692,105940.0,105930.0,1.20005789]
[1749331576362,0.04797044,105940.0,105930.0,1.20005789]
[1749331576976,0.0385315,105940.0,105930.0,1.20005789]
[1749331577155,0.04797035,105940.0,105930.0,1.20005789]
[1749331578020,0.03026893,105940.0,105930.0,1.20005789]
[1749331578200,0.04797053,105940.0,105930.0,1.20005789]
[1749331578417,0.0479723,105940.0,105930.0,1.20005789]
[1749331578622,0.03026893,105940.0,105930.0,1.20005789]
[1749331578826,0.04797244,105940.0,105930.0,1.20005789]
[1749331579723,0.03026893,105940.0,105930.0,1.20005789]
[1749331579931,0.04797242,105940.0,105930.0,1.20005789]
[1749331580542,0.04797254,105940.0,105930.0,1.20005789]
[1749331580972,0.04797254,105940.0,105930.0,0.59892343]
[1749331581389,0.03853369,105940.0,105930.0,0.59892343]
[1749331581609,0.0385359,105940.0,105930.0,0.59892343]
[1749331581817,0.03853588,105940.0,105930.0,0.59892343]
[1749331583348,0.03853406,105940.0,105930.0,0.59892343]
[1749331583786,0.03853492,105940.0,105930.0,0.59892343]
[1749331584198,0.03853491,105940.0,105930.0,0.59892343]
[1749331584652,0.02083008,105940.0,105930.0,0.59892343]
[1749331584864,0.03853494,105940.0,105930.0,0.59892343]
[1749331585276,0.03853499,105940.0,105930.0,0.59892343]
[1749331586912,0.03853503,105940.0,105930.0,0.59892343]
[1749331588092,0.03853512,105940.0,105930.0,0.59892343]
[1749331591552,0.04797406,105940.0,105930.0,0.59892343]
[1749331591781,0.03853512,105940.0,105930.0,0.59892343]
[1749331592193,0.03853513,105940.0,105930.0,0.59892343]
[1749331594413,0.02083008,105940.0,105930.0,0.59892343]
[1749331594605,0.03853582,105940.0,105930.0,0.59892343]
[1749331595188,0.02083008,105940.0,105930.0,0.59892343]
[1749331595417,0.03853589,105940.0,105930.0,0.59892343]
[1749331596379,0.02083008,105940.0,105930.0,0.59892343]
[1749331596591,0.03853588,105940.0,105930.0,0.59892343]
[1749331596990,0.03853591,105940.0,105930.0,0.59892343]
[1749331597947,0.0385359,105940.0,105930.0,0.59892343]
[1749331598787,0.03853588,105940.0,105930.0,0.59892343]
[1749331600367,0.03853585,105940.0,105930.0,0.59892343]
[1749331600570,0.03853576,105940.0,105930.0,0.59892343]
[1749331600771,0.02082999,105940.0,105930.0,0.59892343]
[1749331601044,0.03853577,105940.0,105930.0,0.59892343]
[1749331601667,0.0385358,105940.0,105930.0,0.59892343]
[1749331602425,0.03853579,105940.0,105930.0,0.59892343]
[1749331603256,0.03853581,105940.0,105930.0,0.59892343]
[1749331606742,0.0385358,105940.0,105930.0,0.59892343]
[1749331607992,0.03853579,105940.0,105930.0,0.59892343]
[1749331608425,0.0385358,105940.0,105930.0,0.59892343]
[1749331608683,0.02082999,105940.0,105930.0,0.59892343]
[1749331608938,0.0385358,105940.0,105930.0,0.59892343]
[1749331611342,0.02082999,105940.0,105930.0,0.59892343]
[1749331611551,0.03853583,105940.0,105930.0,0.59892343]
[1749331612661,0.03853587,105940.0,105930.0,0.59892343]
[1749331614513,0.03853589,105940.0,105930.0,0.59892343]
[1749331614733,0.01139131,105940.0,105930.0,0.59892343]
[1749331614947,0.03853599,105940.0,105930.0,0.59892343]
[1749331615528,0.03853598,105940.0,105930.0,0.59892343]
[1749331616346,0.03853595,105940.0,105930.0,0.59892343]
[1749331616877,0.03853585,105940.0,105930.0,0.59892343]
[1749331617077,0.03853257,105940.0,105930.0,0.59892343]
[1749331617827,0.03853267,105940.0,105930.0,0.59892343]
[1749331619383,0.03853259,105940.0,105930.0,0.59892343]
[1749331620284,0.03853264,105940.0,105930.0,0.59892343]
[1749331621133,0.03853181,105940.0,105930.0,0.59892343]
[1749331621905,0.02082999,105940.0,105930.0,0.59892343]
[1749331622183,0.03853171,105940.0,105930.0,0.59892343]
[1749331622801,0.02082999,105940.0,105930.0,0.59892343]
[1749331622992,0.03853179,105940.0,105930.0,0.59892343]
[1749331624052,0.0385318,105940.0,105930.0,0.59892343]
[1749331625314,0.03853178,105940.0,105930.0,0.59892343]
[1749331626911,0.03853166,105940.0,105930.0,0.59892343]
[1749331627111,0.03853164,105940.0,105930.0,0.59892343]
[1749331628333,0.02082999,105940.0,105930.0,0.59892343]
[1749331628515,0.03853081,105940.0,105930.0,0.59892343]
[1749331629497,0.04797024,105940.0,105930.0,0.59892343]
[1749331629707,0.03026876,105940.0,105930.0,0.59892343]
[1749331629916,0.04797016,105940.0,105930.0,0.59892343]
[1749331631200,0.04797085,105940.0,105930.0,0.59892343]
[1749331632026,0.04797074,105940.0,105930.0,0.59892343]
[1749331632664,0.04797084,105940.0,105930.0,0.59892343]
[1749331632870,0.04797085,105940.0,105930.0,0.59892343]
[1749331633953,0.04797075,105940.0,105930.0,0.59892343]
[1749331634370,0.03853198,105940.0,105930.0,0.59892343]
[1749331634566,0.038532,105940.0,105930.0,0.59892343]
[1749331638433,0.02082999,105940.0,105930.0,0.59892343]
[1749331638636,0.038532,105940.0,105930.0,0.59892343]
[1749331641497,0.03853201,105940.0,105930.0,0.59892343]
[1749331642390,0.04797086,105940.0,105930.0,0.59892343]
[1749331642571,0.03853201,105940.0,105930.0,0.59892343]
[1749331645110,0.03853204,105940.0,105930.0,0.59892343]
[1749331645327,0.04797089,105940.0,105930.0,0.59892343]
[1749331645540,0.03853204,105940.0,105930.0,0.59892343]
[1749331646169,0.03853207,105940.0,105930.0,0.59892343]
[1749331647843,0.03853529,105940.0,105930.0,0.59892343]
[1749331648306,0.02082999,105940.0,105930.0,0.59892343]
[1749331648510,0.03853527,105940.0,105930.0,0.59892343]
[1749331648928,0.04797404,105940.0,105930.0,0.59892343]
[1749331649768,0.03853518,105940.0,105930.0,0.59892343]
[1749331649979,0.04797408,105940.0,105930.0,0.59892343]
[1749331650188,0.04797395,105940.0,105930.0,0.59892343]
[1749331651598,0.04797398,105940.0,105930.0,0.59892343]
[1749331653158,0.04797404,105940.0,105930.0,0.59892343]
[1749331653345,0.04797403,105940.0,105930.0,0.59892343]
[1749331653544,0.04797402,105940.0,105930.0,0.59892343]
[1749331653750,0.04797412,105940.0,105930.0,0.59892343]
[1749331654787,0.04797556,105940.0,105930.0,0.59892343]
[1749331655191,0.04797564,105940.0,105930.0,0.59892343]
[1749331656223,0.04797467,105940.0,105930.0,0.59892343]
[1749331656643,0.04797465,105940.0,105930.0,0.59892343]
[1749331658394,0.04797559,105940.0,105930.0,0.59892343]
[1749331658603,0.03853681,105940.0,105930.0,0.59892343]
[1749331658788,0.04797559,105940.0,105930.0,0.59892343]
[1749331659893,0.04797558,105940.0,105930.0,0.59892343]
[1749331660485,0.03853681,105940.0,105930.0,0.59892343]
[1749331660722,0.03853687,105940.0,105930.0,0.59892343]
[1749331662461,0.03853689,105940.0,105930.0,0.59892343]
[1749331662897,0.03853688,105940.0,105930.0,0.59892343]
[1749331663316,0.03853689,105940.0,105930.0,0.59892343]
[1749331664917,0.02082999,105940.0,105930.0,0.59892343]
[1749331665160,0.03853688,105940.0,105930.0,0.59892343]
[1749331666488,0.03853687,105940.0,105930.0,0.59892343]
[1749331667652,0.03853686,105940.0,105930.0,0.59892343]
[1749331669375,0.03853685,105940.0,105930.0,0.59892343]
[1749331670021,0.03853687,105940.0,105930.0,0.59892343]
[1749331671585,0.03853688,105940.0,105930.0,0.59892343]
[1749331671801,0.04797573,105940.0,105930.0,0.59892343]
[1749331672022,0.03853689,105940.0,105930.0,0.59892343]
[1749331672467,0.03853687,105940.0,105930.0,0.59892343]
[1749331673780,0.02082999,105940.0,105930.0,0.59892343]
[1749331673991,0.03853686,105940.0,105930.0,0.59892343]
[1749331675225,0.03853691,105940.0,105930.0,0.59892343]
[1749331676058,0.04797576,105940.0,105930.0,0.59892343]
[1749331676282,0.03853698,105940.0,105930.0,0.59892343]
[1749331676482,0.02082999,105940.0,105930.0,0.59892343]
[1749331676695,0.038537,105940.0,105930.0,0.59892343]
[1749331678668,0.03853691,105940.0,105930.0,1.23783455]
[1749331679277,0.03853707,105940.0,105930.0,1.23783455]
[1749331679719,0.03853707,105940.0,105930.0,1.20005789]
[1749331680568,0.02909834,105940.0,105930.0,1.20005789]
[1749331680780,0.03853703,105940.0,105930.0,1.20005789]
[1749331680994,0.03853704,105940.0,105930.0,1.20005789]
[1749331681404,0.02909836,105940.0,105930.0,1.20005789]
[1749331681614,0.03853695,105940.0,105930.0,1.20005789]
[1749331681826,0.0208299,105940.0,105930.0,1.20005789]
[1749331682012,0.03853608,105940.0,105930.0,1.20005789]
[1749331683733,0.03853568,105940.0,105930.0,1.20005789]
[1749331684152,0.03853567,105940.0,105930.0,1.20005789]
[1749331684373,0.03853566,105940.0,105930.0,1.20005789]
[1749331684816,0.03853555,105940.0,105930.0,1.20005789]
[1749331685035,0.02909687,105940.0,105930.0,1.20005789]
[1749331685236,0.03853546,105940.0,105930.0,1.20005789]
[1749331685452,0.03853543,105940.0,105930.0,1.20005789]
[1749331685891,0.0208299,105940.0,105930.0,1.20005789]
[1749331686088,0.03853542,105940.0,105930.0,1.20005789]
[1749331686944,0.0208299,105940.0,105930.0,1.20005789]
[1749331687151,0.0385353,105940.0,105930.0,1.20005789]
[1749331687307,0.03853529,105940.0,105930.0,1.20005789]
[1749331688111,0.03853528,105940.0,105930.0,1.20005789]
[1749331688788,0.03853516,105940.0,105930.0,1.20005789]
[1749331688994,0.0208299,105940.0,105930.0,1.20005789]
[1749331689206,0.03853515,105940.0,105930.0,1.20005789]
[1749331689413,0.0208299,105940.0,105930.0,1.20005789]
[1749331689624,0.02909657,105940.0,105930.0,1.20005789]
[1749331690450,0.02909645,105940.0,105930.0,1.20005789]
[1749331690650,0.01139131,105940.0,105930.0,1.20005789]
[1749331690864,0.02909645,105940.0,105930.0,1.20005789]
[1749331691075,0.02909645,105940.0,105930.0,0.59892343]
[1749331691288,0.01965812,105940.0,105930.0,1.48271455]
[1749331692327,0.00195281,105940.0,105930.0,1.44493789]
[1749331692485,0.01965795,105940.0,105930.0,1.44493789]
[1749331692693,0.01965794,105940.0,105930.0,1.44493789]
[1749331694128,0.01965783,105940.0,105930.0,1.44493789]
[1749331694345,0.00195281,105940.0,105930.0,1.44493789]
[1749331694562,0.01965783,105940.0,105930.0,1.44493789]
[1749331696069,0.00195281,105940.0,105930.0,1.44493789]
[1749331696280,0.01965776,105940.0,105930.0,1.44493789]
[1749331697614,0.01965775,105940.0,105930.0,1.44493789]
[1749331699026,0.01965777,105940.0,105930.0,1.44493789]
[1749331699228,0.01965783,105940.0,105930.0,1.44493789]
[1749331699839,0.00195281,105940.0,105930.0,1.44493789]
[1749331700052,0.02909632,105940.0,105930.0,1.44493789]
[1749331700477,0.02909642,105940.0,105930.0,1.44493789]
[1749331702872,0.02909646,105940.0,105930.0,1.44493789]
[1749331703151,0.02909662,105940.0,105930.0,1.44493789]
[1749331704120,0.02909666,105940.0,105930.0,1.44493789]
[1749331704750,0.01139131,105940.0,105930.0,1.44493789]
[1749331705025,0.0290969,105940.0,105930.0,1.44493789]
[1749331705243,0.02909692,105940.0,105930.0,1.44493789]
[1749331705451,0.02909693,105940.0,105930.0,1.44493789]
[1749331705993,0.02909698,105940.0,105930.0,1.44493789]
[1749331706189,0.01139131,105940.0,105930.0,1.44493789]
[1749331706448,0.02909698,105940.0,105930.0,1.44493789]
[1749331707031,0.02909716,105940.0,105930.0,1.44493789]
[1749331707235,0.02909707,105940.0,105930.0,1.44493789]
[1749331707639,0.02909747,105940.0,105930.0,1.44493789]
[1749331707833,0.02909743,105940.0,105930.0,1.44493789]
[1749331708666,0.02909828,105940.0,105930.0,1.44493789]
[1749331709305,0.02909827,105940.0,105930.0,1.44493789]
[1749331709620,0.0113914,105940.0,105930.0,1.44493789]
[1749331709793,0.02909827,105940.0,105930.0,1.44493789]
[1749331710209,0.0113914,105940.0,105930.0,1.44493789]
[1749331710410,0.02909829,105940.0,105930.0,1.44493789]
[1749331711236,0.02909832,105940.0,105930.0,1.44493789]
[1749331712572,0.0113914,105940.0,105930.0,1.44493789]
[1749331712766,0.02909832,105940.0,105930.0,1.44493789]
[1749331714216,0.02909829,105940.0,105930.0,1.44493789]
[1749331714425,0.02909834,105940.0,105930.0,1.44493789]
[1749331715199,0.02909834,105940.0,105930.0,0.84380343]
[1749331715400,0.15561212,105940.0,105930.0,0.58892386]
[1749331715599,0.35383752,105940.0,105930.0,0.58892387]
[1749331715927,0.36047764,105940.0,105930.0,0.59836353]
[1749331716079,0.36047688,105940.0,105930.0,0.59836353]
[1749331717340,0.35382793,105940.0,105930.0,0.59836353]
[1749331717542,0.35382792,105940.0,105930.0,0.59836353]
[1749331717780,0.36046443,105940.0,105930.0,0.59836353]
[1749331717908,0.17167833,105940.0,105930.0,0.59836353]
[1749331718118,0.05740601,105940.0,105930.0,1.20893756]
[1749331718334,0.05740569,105940.0,105930.0,1.20893756]
[1749331718851,0.05740281,105940.0,105930.0,1.20893756]
[1749331719082,0.05740286,105940.0,105930.0,1.20893756]
[1749331719300,0.05740288,105940.0,105930.0,1.20893756]
[1749331719504,0.04796358,105940.0,105930.0,1.20893756]
[1749331719906,0.06446358,105940.0,105930.0,1.20893756]
[1749331720315,0.06446315,105940.0,105930.0,1.20893756]
[1749331720520,0.06446314,105940.0,105930.0,1.20893756]
[1749331721580,0.04676937,105940.0,105930.0,1.20893756]
[1749331722383,0.06446148,105940.0,105930.0,1.20893756]
[1749331723438,0.04676937,105940.0,105930.0,1.20893756]
[1749331723646,0.06446105,105940.0,105930.0,1.20893756]
[1749331724140,0.04676937,105940.0,105930.0,1.20893756]
[1749331724363,0.06446115,105940.0,105930.0,1.20893756]
[1749331725244,0.04796115,105940.0,105930.0,1.20893756]
[1749331725657,0.03026937,105940.0,105930.0,1.20893756]
[1749331726096,0.04796047,105940.0,105930.0,1.20893756]
[1749331726516,0.03852135,105940.0,105930.0,1.22533756]
[1749331726724,0.0479604,105940.0,105930.0,1.22533756]
[1749331726929,0.03026928,105940.0,105930.0,1.22533756]
[1749331727076,0.04796001,105940.0,105930.0,1.20893756]
[1749331727280,0.03026928,105940.0,105930.0,1.20893756]
[1749331727706,0.03852098,105940.0,105930.0,1.20893756]
[1749331727916,0.04796001,105940.0,105930.0,1.20893756]
[1749331728374,0.03026928,105940.0,105930.0,1.20893756]
[1749331728575,0.04686919,105940.0,105930.0,1.45381756]
[1749331729207,0.03026919,105940.0,105930.0,1.45381756]
[1749331729568,0.04795961,105940.0,105930.0,1.45381756]
[1749331729956,0.04795984,105940.0,105930.0,1.45381756]
[1749331730401,0.03026919,105940.0,105930.0,1.45381756]
[1749331734002,0.04566919,105940.0,105930.0,1.45381756]
[1749331734644,0.03026919,105940.0,105930.0,1.45381756]
[1749331734838,0.04796016,105940.0,105930.0,1.45381756]
[1749331735837,0.03026919,105940.0,105930.0,1.45381756]
[1749331736057,0.04800098,105940.0,105930.0,1.45381756]
[1749331736210,0.04800096,105940.0,105930.0,1.45381756]
[1749331736830,0.0480015,105940.0,105930.0,1.45381756]
[1749331737425,0.0480023,105940.0,105930.0,1.45381756]
[1749331737626,0.04800228,105940.0,105930.0,1.45381756]
[1749331737827,0.03030919,105940.0,105930.0,1.45381756]
[1749331738029,0.04800231,105940.0,105930.0,1.45381756]
[1749331740027,0.04800281,105940.0,105930.0,1.45381756]
[1749331740673,0.04800422,105940.0,105930.0,1.45381756]
[1749331741545,0.03030919,105940.0,105930.0,1.45381756]
[1749331741754,0.04800473,105940.0,105930.0,1.45381756]
[1749331741967,0.04800471,105940.0,105930.0,1.45381756]
[1749331742409,0.04800704,105940.0,105930.0,1.45381756]
[1749331743332,0.04800705,105940.0,105930.0,1.45381756]
[1749331744412,0.02912965,105940.0,105930.0,1.45381756]
[1749331744754,0.0385684,105940.0,105930.0,1.45381756]
[1749331744962,0.03857367,105940.0,105930.0,1.45381756]
[1749331746724,0.03857432,105940.0,105930.0,1.20893756]
[1749331748123,0.02087017,105940.0,105930.0,1.20893756]
[1749331748324,0.03857164,105940.0,105930.0,1.20893756]
[1749331749103,0.03857236,105940.0,105930.0,1.20893756]
[1749331749758,0.02087017,105940.0,105930.0,1.20893756]
[1749331750180,0.03857221,105940.0,105930.0,1.20893756]
[1749331750604,0.03857221,105940.0,105930.0,1.45381756]
[1749331751058,0.04801115,105940.0,105930.0,1.45381756]
[1749331751489,0.03857221,105940.0,105930.0,1.45381756]
[1749331751714,0.04801115,105940.0,105930.0,1.45381756]
[1749331752794,0.04801167,105940.0,105930.0,1.45381756]
[1749331753210,0.03857273,105940.0,105930.0,1.45381756]
[1749331754255,0.04801167,105940.0,105930.0,1.45381756]
[1749331754471,0.03857273,105940.0,105930.0,1.45381756]
[1749331755136,0.03857273,105940.0,105930.0,1.20893756]
[1749331755583,0.02087017,105940.0,105930.0,1.20893756]
[1749331755788,0.03857271,105940.0,105930.0,1.20893756]
[1749331756488,0.03857272,105940.0,105930.0,1.20893756]
[1749331757692,0.02087017,105940.0,105930.0,1.20893756]
[1749331757899,0.0385729,105940.0,105930.0,1.20893756]
[1749331758716,0.0114314,105940.0,105930.0,1.20893756]
[1749331758882,0.03857285,105940.0,105930.0,1.20893756]
[1749331759082,0.03857283,105940.0,105930.0,1.20893756]
[1749331759283,0.03857287,105940.0,105930.0,1.20893756]
[1749331760388,0.03857288,105940.0,105930.0,1.20893756]
[1749331760609,0.02913411,105940.0,105930.0,1.20893756]
[1749331760812,0.01969553,105940.0,105930.0,1.20893756]
[1749331761020,0.02913412,105940.0,105930.0,1.20893756]
[1749331762427,0.02913408,105940.0,105930.0,1.20893756]
[1749331764222,0.02913417,105940.0,105930.0,1.20893756]
[1749331764558,0.02913415,105940.0,105930.0,1.20893756]
[1749331765440,0.02913436,105940.0,105930.0,1.20893756]
[1749331765805,0.0114314,105940.0,105930.0,1.20893756]
[1749331766033,0.02913436,105940.0,105930.0,1.20893756]
[1749331767005,0.0114314,105940.0,105930.0,0.6078031]
[1749331767222,0.02913371,105940.0,105930.0,0.6078031]
[1749331768248,0.0114314,105940.0,105930.0,0.6078031]
[1749331768479,0.02913436,105940.0,105930.0,0.6078031]
[1749331768865,0.0114314,105940.0,105930.0,0.6078031]
[1749331779046,0.02913665,105940.0,105930.0,0.6078031]
[1749331779703,0.02087017,105940.0,105930.0,0.6078031]
[1749331779923,0.03857543,105940.0,105930.0,0.6078031]
[1749331780161,0.03857544,105940.0,105930.0,0.6078031]
[1749331780794,0.03857545,105940.0,105930.0,0.6078031]
[1749331781013,0.02087017,105940.0,105930.0,0.6078031]
[1749331789566,0.03030902,105940.0,105930.0,0.6078031]
[1749331790166,0.02087017,105940.0,105930.0,0.6078031]
[1749331790310,0.03857602,105940.0,105930.0,0.6078031]
[1749331790918,0.038576,105940.0,105930.0,0.6078031]
[1749331793430,0.03857602,105940.0,105930.0,0.6078031]
[1749331793611,0.03857601,105940.0,105930.0,0.6078031]
[1749331794042,0.02087017,105940.0,105930.0,0.6078031]
[1749331794238,0.038576,105940.0,105930.0,0.6078031]
[1749331794986,0.03857603,105940.0,105930.0,0.6078031]
[1749331795883,0.03857604,105940.0,105930.0,0.6078031]
[1749331796494,0.03857605,105940.0,105930.0,0.6078031]
[1749331796702,0.03857607,105940.0,105930.0,0.6078031]
[1749331798423,0.04801491,105940.0,105930.0,0.6078031]
[1749331798627,0.03030902,105940.0,105930.0,0.6078031]
[1749331798829,0.04801491,105940.0,105930.0,0.6078031]
[1749331799353,0.03857606,105940.0,105930.0,0.6078031]
[1749331799756,0.02913729,105940.0,105930.0,0.6078031]
[1749331800162,0.02087025,105940.0,105930.0,0.6078031]
[1749331800404,0.02087017,105940.0,105930.0,0.6078031]
[1749331800930,0.03857606,105940.0,105930.0,0.6078031]
[1749331801974,0.03857601,105940.0,105930.0,0.6078031]
[1749331802396,0.02087017,105940.0,105930.0,0.6078031]
[1749331802605,0.03857601,105940.0,105930.0,0.6078031]
[1749331803429,0.02087017,105940.0,105930.0,0.6078031]
[1749331803645,0.038576,105940.0,105930.0,0.6078031]
[1749331803852,0.02087017,105940.0,105930.0,0.6078031]
[1749331804063,0.038576,105940.0,105930.0,0.6078031]
[1749331805384,0.03857598,105940.0,105930.0,0.6074831]
[1749331805633,0.02087017,105940.0,105930.0,0.6074831]
[1749331805866,0.03857591,105940.0,105930.0,0.6074831]
[1749331806076,0.03857592,105940.0,105930.0,0.6074831]
[1749331807141,0.03857489,105940.0,105930.0,0.6074831]
[1749331807359,0.03857496,105940.0,105930.0,0.8523631]
[1749331807570,0.02087017,105940.0,105930.0,0.8523631]
[1749331807779,0.03857493,105940.0,105930.0,0.8523631]
[1749331808853,0.02913616,105940.0,105930.0,0.8523631]
[1749331809064,0.03857484,105940.0,105930.0,0.8523631]
[1749331809734,0.03857485,105940.0,105930.0,0.8523631]
[1749331810593,0.03857483,105940.0,105930.0,0.8523631]
[1749331811264,0.03857491,105940.0,105930.0,0.6074831]
[1749331811470,0.02087008,105940.0,105930.0,0.6074831]
[1749331811883,0.03857484,105940.0,105930.0,0.6074831]
[1749331812986,0.03857507,105940.0,105930.0,0.6074831]
[1749331813190,0.03857508,105940.0,105930.0,0.6074831]
[1749331814279,0.03857504,105940.0,105930.0,0.6074831]
[1749331815189,0.03857503,105940.0,105930.0,0.6074831]
[1749331815365,0.03857504,105940.0,105930.0,0.6074831]
[1749331818272,0.02087008,105940.0,105930.0,0.6074831]
[1749331818502,0.03857507,105940.0,105930.0,0.6074831]
[1749331820131,0.03857506,105940.0,105930.0,0.6074831]
[1749331820534,0.02087008,105940.0,105930.0,0.6074831]
[1749331820909,0.03857506,105940.0,105930.0,0.6074831]
[1749331821117,0.03857506,105940.0,105930.0,1.20861756]
[1749331822318,0.03857513,105940.0,105930.0,1.20861756]
[1749331822522,0.03857515,105940.0,105930.0,1.20861756]
[1749331823765,0.0385751,105940.0,105930.0,1.20861756]
[1749331824211,0.02087008,105940.0,105930.0,1.20861756]
[1749331824414,0.03857522,105940.0,105930.0,1.20861756]
[1749331824616,0.04801407,105940.0,105930.0,1.20861756]
[1749331825245,0.04801404,105940.0,105930.0,1.20861756]
[1749331825445,0.04801405,105940.0,105930.0,1.20861756]
[1749331825648,0.03030893,105940.0,105930.0,1.20861756]
[1749331826213,0.04801406,105940.0,105930.0,1.20861756]
[1749331828821,0.03857521,105940.0,105930.0,1.20861756]
[1749331829027,0.04801406,105940.0,105930.0,1.20861756]
[1749331829238,0.04801412,105940.0,105930.0,1.20861756]
[1749331829443,0.03030893,105940.0,105930.0,1.20861756]
[1749331830146,0.04801412,105940.0,105930.0,1.20861756]
[1749331831645,0.04801413,105940.0,105930.0,1.20861756]
[1749331833131,0.04801469,105940.0,105930.0,1.20861756]
[1749331833340,0.03030893,105940.0,105930.0,1.20861756]
[1749331833545,0.04801485,105940.0,105930.0,1.20861756]
[1749331833775,0.03030893,105940.0,105930.0,1.20861756]
[1749331833979,0.04801485,105940.0,105930.0,1.20861756]
[1749331835445,0.04801488,105940.0,105930.0,1.20861756]
[1749331835873,0.04801487,105940.0,105930.0,1.20861756]
[1749331837165,0.04801488,105940.0,105930.0,1.20861756]
[1749331837388,0.03030893,105940.0,105930.0,1.20861756]
[1749331837607,0.04801488,105940.0,105930.0,1.20861756]
[1749331838679,0.04801486,105940.0,105930.0,1.20861756]
[1749331839361,0.03030893,105940.0,105930.0,1.20861756]
[1749331839577,0.04801486,105940.0,105930.0,1.20861756]
[1749331840444,0.03030893,105940.0,105930.0,1.20861756]
[1749331840658,0.04801482,105940.0,105930.0,1.20861756]
[1749331840867,0.03030885,105940.0,105930.0,1.20861756]
[1749331841082,0.04801474,105940.0,105930.0,1.20861756]
[1749331842266,0.04801473,105940.0,105930.0,1.20861756]
[1749331842679,0.03030885,105940.0,105930.0,1.20861756]
[1749331843144,0.04801473,105940.0,105930.0,1.20861756]
[1749331843348,0.05745358,105940.0,105930.0,1.20861756]
[1749331843773,0.04801473,105940.0,105930.0,1.20861756]
[1749331844404,0.03030885,105940.0,105930.0,1.20861756]
[1749331844606,0.03857597,105940.0,105930.0,1.20861756]
[1749331844812,0.02087008,105940.0,105930.0,1.20861756]
[1749331844988,0.03857596,105940.0,105930.0,1.20861756]
[1749331845420,0.03857596,105940.0,105930.0,0.6074831]
[1749331845629,0.03857596,105940.0,105930.0,1.20861756]
[1749331845834,0.02913728,105940.0,105930.0,1.20861756]
[1749331845972,0.0114314,105940.0,105930.0,1.20861756]
[1749331846584,0.02913728,105940.0,105930.0,1.20861756]
[1749331846973,0.02913728,105940.0,105930.0,0.6074831]
[1749331848304,0.02913725,105940.0,105930.0,0.6074831]
[1749331848508,0.0114314,105940.0,105930.0,0.6074831]
[1749331848717,0.02913725,105940.0,105930.0,0.6074831]
[1749331849376,0.03857602,105940.0,105930.0,0.6074831]
[1749331849611,0.02913725,105940.0,105930.0,0.6074831]
[1749331849820,0.0114314,105940.0,105930.0,0.6074831]
[1749331850250,0.02913725,105940.0,105930.0,0.6074831]
[1749331851347,0.02913726,105940.0,105930.0,0.6074831]
[1749331851561,0.0114314,105940.0,105930.0,0.6074831]
[1749331851822,0.02913725,105940.0,105930.0,0.6074831]
[1749331852026,0.0114314,105940.0,105930.0,0.6074831]
[1749331852515,0.02913725,105940.0,105930.0,0.6074831]
[1749331853570,0.0114314,105940.0,105930.0,0.6074831]
[1749331853805,0.02913725,105940.0,105930.0,0.6074831]
[1749331855191,0.0114314,105940.0,105930.0,0.6074831]
[1749331855396,0.0291373,105940.0,105930.0,0.6074831]
[1749331855622,0.0114314,105940.0,105930.0,0.6074831]